[Event "Tournoi norme de MI"]
[Site "PARIS"]
[Date "????.??.??"]
[Round "2.5"]
[White "Duboue, Peio"]
[Black "Willems, Niels"]
[Result "1/2-1/2"]
[TimeControl "90mn+30s/c"]
[WhiteElo "2462"]
[BlackElo "2337"]

1. e4 {[%clk 01:28:58]} {[%emt 00:02:01]} c6 {[%clk 01:30:44]} {[%emt
00:00:16]} 2. Nf3 {[%clk 01:29:16]} {[%emt 00:00:13]} d5 {[%clk 01:31:06]}
{[%emt 00:00:07]} 3. d3 {[%clk 01:29:40]} {[%emt 00:00:07]} Bg4 {[%clk
01:27:45]} {[%emt 00:03:51]} 4. Nbd2 {[%clk 01:28:17]} {[%emt 00:01:53]} Nf6
{[%clk 01:24:56]} {[%emt 00:03:19]} 5. Be2 {[%clk 01:21:52]} {[%emt 00:06:54]}
e6 {[%clk 01:24:05]} {[%emt 00:01:22]} 6. O-O {[%clk 01:22:04]} {[%emt
00:00:17]} Qc7 {[%clk 01:14:26]} {[%emt 00:10:09]} 7. b3 {[%clk 01:16:24]}
{[%emt 00:06:12]} Nbd7 {[%clk 01:12:22]} {[%emt 00:02:32]} 8. Bb2 {[%clk
01:15:42]} {[%emt 00:01:13]} Bd6 {[%clk 01:08:18]} {[%emt 00:04:33]} 9. h3
{[%clk 01:09:38]} {[%emt 00:06:34]} Bh5 {[%clk 01:03:43]} {[%emt 00:05:04]} 10.
Nh4 {[%clk 01:07:27]} {[%emt 00:02:41]} Bxe2 {[%clk 01:03:40]} {[%emt
00:00:33]} 11. Qxe2 {[%clk 01:07:55]} {[%emt 00:00:02]} O-O-O {[%clk 00:41:47]}
{[%emt 00:22:23]} 12. Nhf3 {[%clk 01:04:39]} {[%emt 00:03:46]} Ne5 {[%clk
00:35:54]} {[%emt 00:06:23]} 13. Nxe5 {[%clk 00:54:56]} {[%emt 00:10:13]} Bxe5
{[%clk 00:36:22]} {[%emt 00:00:02]} 14. d4 {[%clk 00:55:13]} {[%emt 00:00:13]}
Bh2+ {[%clk 00:35:17]} {[%emt 00:01:35]} 15. Kh1 {[%clk 00:55:39]} {[%emt
00:00:04]} Bf4 {[%clk 00:35:41]} {[%emt 00:00:06]} 16. e5 {[%clk 00:55:50]}
{[%emt 00:00:19]} Bxd2 {[%clk 00:32:10]} {[%emt 00:04:01]} 17. Qxd2 {[%clk
00:56:18]} {[%emt 00:00:02]} Ne4 {[%clk 00:26:30]} {[%emt 00:06:10]} 18. Qe1
{[%clk 00:55:12]} {[%emt 00:01:36]} f5 {[%clk 00:26:39]} {[%emt 00:00:21]} 19.
Bc1 {[%clk 00:39:08]} {[%emt 00:16:34]} h6 {[%clk 00:23:52]} {[%emt 00:03:18]}
20. h4 {[%clk 00:39:36]} {[%emt 00:00:02]} Qb6 {[%clk 00:21:47]} {[%emt
00:02:35]} 21. c3 {[%clk 00:38:41]} {[%emt 00:01:25]} Qa5 {[%clk 00:21:17]}
{[%emt 00:01:00]} 22. f3 {[%clk 00:14:45]} {[%emt 00:24:26]} Qxc3 {[%clk
00:21:13]} {[%emt 00:00:34]} 23. Bf4 {[%clk 00:15:13]} {[%emt 00:00:02]} Qxe1
{[%clk 00:18:07]} {[%emt 00:03:36]} 24. Rb1 Qd1 {[%clk 00:18:07]} 25. Ra1 Qe1
26. Raxe1 {[%clk 00:15:41]} Nc3 {[%clk 00:17:23]} {[%emt 00:01:14]} 27. a4
{[%clk 00:16:10]} {[%emt 00:00:01]} c5 {[%clk 00:13:49]} {[%emt 00:04:05]} 28.
Be3 {[%clk 00:16:35]} {[%emt 00:00:04]} 1/2-1/2

[Event "Tournoi norme de MI"]
[Site "PARIS"]
[Date "????.??.??"]
[Round "2.1"]
[White "Roshka, Yevgeniy"]
[Black "Vlachos, Anatole"]
[Result "1-0"]
[TimeControl "90mn+30s/c"]
[WhiteElo "2501"]
[BlackElo "2430"]

1. d4 {[%clk 01:30:56]} {[%emt 00:00:05]} d5 {[%clk 01:22:37]} {[%emt
00:08:22]} 2. c4 {[%clk 01:31:16]} {[%emt 00:00:10]} dxc4 {[%clk 01:22:59]}
{[%emt 00:00:10]} 3. e3 {[%clk 01:28:35]} {[%emt 00:03:10]} Nf6 {[%clk
01:23:13]} {[%emt 00:00:15]} 4. Bxc4 {[%clk 01:28:56]} {[%emt 00:00:09]} e6
{[%clk 01:23:39]} {[%emt 00:00:04]} 5. Nf3 {[%clk 01:29:07]} {[%emt 00:00:17]}
a6 {[%clk 01:24:00]} {[%emt 00:00:11]} 6. O-O {[%clk 01:29:23]} {[%emt
00:00:14]} c5 {[%clk 01:24:27]} {[%emt 00:00:04]} 7. a4 {[%clk 01:27:07]}
{[%emt 00:02:44]} Nc6 {[%clk 01:24:35]} {[%emt 00:00:22]} 8. Nc3 {[%clk
01:27:26]} {[%emt 00:00:11]} cxd4 {[%clk 01:24:59]} {[%emt 00:00:06]} 9. exd4
{[%clk 01:27:52]} {[%emt 00:00:03]} Be7 {[%clk 01:24:56]} {[%emt 00:00:33]} 10.
Re1 {[%clk 01:22:33]} {[%emt 00:05:51]} O-O {[%clk 01:16:59]} {[%emt 00:08:26]}
11. Bg5 {[%clk 01:13:16]} {[%emt 00:09:48]} Nb4 {[%clk 01:14:43]} {[%emt
00:02:46]} 12. Ne5 {[%clk 01:12:43]} {[%emt 00:01:04]} Bd7 {[%clk 01:12:12]}
{[%emt 00:02:59]} 13. Qb3 {[%clk 01:10:36]} {[%emt 00:02:36]} Bc6 {[%clk
00:59:27]} {[%emt 00:13:16]} 14. Nxf7 {[%clk 00:34:05]} {[%emt 00:37:02]} Kxf7
{[%clk 00:56:10]} {[%emt 00:03:46]} 15. Bxe6+ {[%clk 00:34:25]} {[%emt
00:00:10]} Kg6 {[%clk 00:55:00]} {[%emt 00:01:40]} 16. Qd1 {[%clk 00:25:32]}
{[%emt 00:09:22]} Bd6 {[%clk 00:38:47]} {[%emt 00:16:43]} 17. h4 {[%clk
00:24:55]} {[%emt 00:01:07]} 1-0



[ePGN "0.1;DGT LiveChess/2.2.5"]

[Event "Tournoi norme de MI"]
[Site "PARIS"]
[Date "????.??.??"]
[Round "3.4"]
[White "Bonte, Andrei-Mihai"]
[Black "Duboue, Peio"]
[Result "0-1"]
[TimeControl "90mn+30s/c"]
[WhiteElo "2340"]
[BlackElo "2462"]

1. d4 {[%clk 01:30:54]} {[%emt 00:00:05]} d5 {[%clk 01:26:49]} {[%emt
00:04:11]} 2. Nf3 {[%clk 01:29:28]} {[%emt 00:01:56]} Nf6 {[%clk 01:27:14]}
{[%emt 00:00:06]} 3. Bf4 {[%clk 01:29:22]} {[%emt 00:00:35]} c5 {[%clk
01:27:15]} {[%emt 00:00:30]} 4. e3 {[%clk 01:29:41]} {[%emt 00:00:11]} Nc6
{[%clk 01:27:40]} {[%emt 00:00:06]} 5. Nbd2 {[%clk 01:30:03]} {[%emt 00:00:08]}
cxd4 {[%clk 01:28:04]} {[%emt 00:00:05]} 6. exd4 {[%clk 01:30:27]} {[%emt
00:00:05]} Bf5 {[%clk 01:28:30]} {[%emt 00:00:04]} 7. c3 {[%clk 01:30:47]}
{[%emt 00:00:10]} e6 {[%clk 01:28:05]} {[%emt 00:00:56]} 8. Qb3 {[%clk
01:27:28]} {[%emt 00:03:48]} Bd6 {[%clk 01:28:19]} {[%emt 00:00:16]} 9. Bg3
{[%clk 01:27:48]} {[%emt 00:00:10]} Rb8 {[%clk 01:28:42]} {[%emt 00:00:07]} 10.
a4 {[%clk 01:27:48]} {[%emt 02:14:06]} h5 {[%clk 01:27:06]} 11. Be2 {[%clk
01:20:14]} g6 {[%clk 01:21:15]} 12. Qa2 {[%clk 01:15:44]} Kf8 {[%clk 01:12:55]}
13. a5 {[%clk 01:13:58]} Kg7 {[%clk 01:13:02]} 14. Bb5 {[%clk 01:09:23]} Ne7
{[%clk 01:10:54]} 15. Be5 {[%clk 00:52:25]} Bxe5 {[%clk 01:04:14]} 16. Nxe5
{[%clk 00:51:19]} h4 {[%clk 01:03:11]} 17. Qa3 {[%clk 00:48:50]} Rc8 {[%clk
00:52:25]} 18. Nf1 {[%clk 00:43:12]} Rc7 {[%clk 00:45:48]} 19. Ne3 {[%clk
00:43:10]} Ne4 {[%clk 00:40:45]} 20. f3 {[%clk 00:39:38]} Nd6 {[%clk 00:40:41]}
21. Be2 {[%clk 00:39:56]} g5 {[%clk 00:38:36]} 22. O-O {[%clk 00:33:20]} f6
{[%clk 00:27:33]} 23. Nd3 {[%clk 00:32:38]} Ng6 {[%clk 00:27:08]} 24. Nc5
{[%clk 00:32:10]} Nf4 {[%clk 00:27:08]} 25. Rfe1 {[%clk 00:26:12]} {[%emt
00:04:35]} Re7 {[%clk 00:27:34]} {[%emt 00:00:05]} 26. Bf1 {[%clk 00:24:43]}
{[%emt 00:01:58]} Bg6 {[%clk 00:25:47]} {[%emt 00:02:17]} 27. Rad1 {[%clk
00:20:49]} {[%emt 00:04:24]} Rhe8 {[%clk 00:25:25]} {[%emt 00:00:52]} 28. Ng4
{[%clk 00:17:22]} {[%emt 00:03:57]} b6 {[%clk 00:16:59]} {[%emt 00:08:56]} 29.
axb6 {[%clk 00:16:56]} {[%emt 00:00:55]} axb6 {[%clk 00:17:26]} {[%emt
00:00:04]} 30. Nd3 {[%clk 00:16:40]} {[%emt 00:00:46]} Bxd3 {[%clk 00:14:24]}
{[%emt 00:03:33]} 31. Bxd3 {[%clk 00:16:55]} {[%emt 00:00:14]} b5 {[%clk
00:13:11]} {[%emt 00:01:44]} 32. Bf1 {[%clk 00:14:58]} {[%emt 00:02:26]} Qb6
{[%clk 00:12:17]} {[%emt 00:01:25]} 33. Qc5 {[%clk 00:12:27]} {[%emt 00:03:01]}
Rb8 {[%clk 00:11:34]} {[%emt 00:01:13]} 34. Ra1 {[%clk 00:10:54]} {[%emt
00:02:03]} b4 {[%clk 00:08:36]} {[%emt 00:03:29]} 35. Ra6 {[%clk 00:08:09]}
{[%emt 00:03:14]} Qxc5 {[%clk 00:09:02]} {[%emt 00:00:04]} 36. dxc5 {[%clk
00:08:34]} {[%emt 00:00:05]} Nf5 {[%clk 00:09:27]} {[%emt 00:00:05]} 37. c4
{[%clk 00:07:15]} {[%emt 00:01:48]} d4 {[%clk 00:07:23]} {[%emt 00:02:34]} 38.
Kf2 {[%clk 00:06:33]} {[%emt 00:01:12]} Kf7 {[%clk 00:06:33]} {[%emt 00:01:21]}
39. g3 {[%clk 00:02:57]} {[%emt 00:04:05]} Nh5 {[%clk 00:06:48]} {[%emt
00:00:15]} 40. Bd3 {[%clk 00:02:11]} {[%emt 00:01:16]} hxg3+ {[%clk 00:06:42]}
{[%emt 00:00:37]} 41. hxg3 {[%clk 00:02:38]} {[%emt 00:00:02]} Nfxg3 {[%clk
00:06:48]} {[%emt 00:00:24]} 42. Nh6+ {[%clk 00:00:44]} {[%emt 00:02:24]} Kg7
{[%clk 00:06:30]} {[%emt 00:00:49]} 43. Rexe6 {[%clk 00:00:44]} {[%emt
00:00:30]} Rxe6 {[%clk 00:05:53]} {[%emt 00:01:07]} 44. Rxe6 {[%clk 00:01:05]}
{[%emt 00:00:08]} Kxh6 {[%clk 00:05:38]} {[%emt 00:00:45]} 45. Rxf6+ {[%clk
00:01:33]} {[%emt 00:00:02]} 0-1

[Event "Tournoi norme de MI"]
[Site "PARIS"]
[Date "????.??.??"]
[Round "3.1"]
[White "Willems, Niels"]
[Black "Navrotescu, Andreea"]
[Result "1-0"]
[TimeControl "90mn+30s/c"]
[WhiteElo "2337"]
[BlackElo "2228"]

1. c4 {[%clk 01:30:57]} {[%emt 00:00:02]} e5 {[%clk 01:28:07]} {[%emt
00:02:53]} 2. Nc3 {[%clk 01:31:18]} {[%emt 00:00:09]} Nf6 {[%clk 01:28:30]}
{[%emt 00:00:07]} 3. Nf3 {[%clk 01:31:42]} {[%emt 00:00:05]} e4 {[%clk
01:28:56]} {[%emt 00:00:05]} 4. Ng5 {[%clk 01:31:42]} {[%emt 00:00:30]} c6
{[%clk 01:29:15]} {[%emt 00:00:11]} 5. Ngxe4 {[%clk 01:31:56]} {[%emt
00:00:16]} Nxe4 {[%clk 01:29:36]} {[%emt 00:00:08]} 6. Nxe4 {[%clk 01:32:20]}
{[%emt 00:00:05]} d5 {[%clk 01:30:03]} {[%emt 00:00:03]} 7. cxd5 {[%clk
01:32:37]} {[%emt 00:00:13]} cxd5 {[%clk 01:30:31]} {[%emt 00:00:02]} 8. Ng3
{[%clk 01:32:58]} {[%emt 00:00:09]} h5 {[%clk 01:30:57]} {[%emt 00:00:04]} 9.
e3 {[%clk 01:33:21]} {[%emt 00:00:07]} h4 {[%clk 01:31:21]} {[%emt 00:00:05]}
10. Ne2 {[%clk 01:33:47]} {[%emt 00:00:04]} Nc6 {[%clk 01:31:41]} {[%emt
00:00:11]} 11. d4 {[%clk 01:31:46]} {[%emt 00:02:31]} Qf6 {[%clk 01:31:41]}
{[%emt 00:00:30]} 12. Nc3 {[%clk 01:30:42]} {[%emt 00:01:34]} Qg6 {[%clk
01:29:32]} {[%emt 00:02:38]} 13. a3 {[%clk 01:22:05]} {[%emt 00:09:07]} Bd6
{[%clk 01:25:48]} {[%emt 00:04:14]} 14. Qf3 {[%clk 00:58:02]} {[%emt 00:24:34]}
Bg4 {[%clk 01:17:45]} {[%emt 00:08:34]} 15. Qxd5 {[%clk 00:58:13]} {[%emt
00:00:18]} O-O {[%clk 01:18:06]} {[%emt 00:00:09]} 16. h3 {[%clk 00:40:31]}
{[%emt 00:18:13]} Ne7 {[%clk 00:57:44]} {[%emt 00:20:52]} 17. Qe4 {[%clk
00:39:36]} {[%emt 00:01:24]} f5 {[%clk 00:55:28]} {[%emt 00:02:46]} 18. Bc4+
{[%clk 00:38:35]} {[%emt 00:01:31]} Kh8 {[%clk 00:54:09]} {[%emt 00:01:49]} 19.
hxg4 {[%clk 00:38:44]} {[%emt 00:00:21]} fxe4 {[%clk 00:54:31]} {[%emt
00:00:07]} 20. Rxh4+ {[%clk 00:39:10]} {[%emt 00:00:04]} Qh6 {[%clk 00:54:53]}
{[%emt 00:00:08]} 21. Rxh6+ {[%clk 00:39:32]} {[%emt 00:00:08]} gxh6 {[%clk
00:55:19]} {[%emt 00:00:03]} 22. Nxe4 {[%clk 00:39:45]} {[%emt 00:00:17]} Bc7
{[%clk 00:53:38]} {[%emt 00:02:12]} 23. Bd2 {[%clk 00:39:12]} {[%emt 00:01:03]}
Nc6 {[%clk 00:48:46]} {[%emt 00:05:23]} 24. Rc1 {[%clk 00:37:22]} {[%emt
00:02:18]} Rae8 {[%clk 00:45:47]} {[%emt 00:03:30]} 25. f3 {[%clk 00:37:15]}
{[%emt 00:00:36]} Bd8 {[%clk 00:41:22]} {[%emt 00:04:56]} 26. Bb5 {[%clk
00:35:14]} {[%emt 00:02:31]} Bh4+ {[%clk 00:41:04]} {[%emt 00:00:48]} 27. Ke2
{[%clk 00:35:22]} {[%emt 00:00:19]} Rc8 {[%clk 00:39:17]} {[%emt 00:02:20]} 28.
Rh1 {[%clk 00:35:15]} {[%emt 00:00:37]} Be7 {[%clk 00:39:07]} {[%emt 00:00:40]}
29. d5 {[%clk 00:33:17]} {[%emt 00:02:27]} a6 {[%clk 00:38:15]} {[%emt
00:01:23]} 30. Bc3+ {[%clk 00:31:34]} {[%emt 00:02:12]} Kg8 {[%clk 00:38:10]}
{[%emt 00:00:36]} 31. Bd3 {[%clk 00:31:39]} {[%emt 00:00:25]} Na7 {[%clk
00:37:24]} {[%emt 00:01:17]} 32. Rxh6 {[%clk 00:31:29]} {[%emt 00:00:39]} Nb5
{[%clk 00:37:40]} {[%emt 00:00:15]} 33. Rh8+ {[%clk 00:31:09]} {[%emt
00:00:49]} Kf7 {[%clk 00:38:08]} {[%emt 00:00:02]} 34. Rh7+ {[%clk 00:31:31]}
{[%emt 00:00:07]} Ke8 {[%clk 00:38:32]} {[%emt 00:00:06]} 35. Bxb5+ {[%clk
00:31:53]} {[%emt 00:00:08]} axb5 {[%clk 00:39:00]} {[%emt 00:00:02]} 36. d6
{[%clk 00:32:10]} {[%emt 00:00:13]} 1-0

[Event "Tournoi norme de MI"]
[Site "PARIS"]
[Date "????.??.??"]
[Round "3.5"]
[White "Bassini, Emile"]
[Black "Lazo, Andrei"]
[Result "1-0"]
[TimeControl "90mn+30s/c"]
[WhiteElo "2382"]
[BlackElo "2212"]

1. e4 {[%clk 01:30:58]} {[%emt 00:00:02]} e6 {[%clk 01:30:56]} {[%emt
00:00:05]} 2. d4 {[%clk 01:31:25]} {[%emt 00:00:03]} d5 {[%clk 01:31:22]}
{[%emt 00:00:04]} 3. Nc3 {[%clk 01:31:52]} {[%emt 00:00:03]} Nf6 {[%clk
01:31:46]} {[%emt 00:00:05]} 4. e5 {[%clk 01:32:20]} {[%emt 00:00:02]} Nfd7
{[%clk 01:32:10]} {[%emt 00:00:06]} 5. f4 {[%clk 01:32:45]} {[%emt 00:00:05]}
c5 {[%clk 01:32:37]} {[%emt 00:00:04]} 6. Nf3 {[%clk 01:33:11]} {[%emt
00:00:03]} Nc6 {[%clk 01:33:03]} {[%emt 00:00:04]} 7. Be3 {[%clk 01:33:36]}
{[%emt 00:00:04]} h6 {[%clk 01:33:29]} {[%emt 00:00:04]} 8. Qd2 {[%clk
01:33:17]} {[%emt 00:00:49]} g5 {[%clk 01:33:52]} {[%emt 00:00:06]} 9. dxc5
{[%clk 01:33:39]} {[%emt 00:00:09]} gxf4 {[%clk 01:33:38]} {[%emt 00:00:45]} 10.
Bxf4 {[%clk 01:34:02]} {[%emt 00:00:07]} a6 {[%clk 01:34:00]} {[%emt 00:00:08]}
11. O-O-O {[%clk 01:33:30]} {[%emt 00:01:02]} Nxc5 {[%clk 01:34:23]} {[%emt
00:00:06]} 12. Kb1 {[%clk 01:22:11]} {[%emt 02:23:32]} b5 {[%clk 01:32:29]} 13.
Bd3 {[%clk 01:19:24]} Qa5 {[%clk 01:31:12]} 14. Rhf1 {[%clk 01:10:12]} Na4
{[%clk 01:23:36]} 15. Ne2 {[%clk 01:07:16]} Qxd2 {[%clk 01:18:03]} 16. Rxd2
{[%clk 01:07:03]} Bd7 {[%clk 01:15:34]} 17. Ned4 {[%clk 01:04:30]} Bc5 {[%clk
01:13:41]} 18. Nxc6 {[%clk 01:03:14]} Bxc6 {[%clk 01:14:09]} 19. c3 {[%clk
01:03:07]} b4 {[%clk 01:03:22]} 20. cxb4 {[%clk 01:03:28]} Bxb4 {[%clk
01:03:13]} 21. Rc2 {[%clk 01:03:44]} Nc5 {[%clk 00:52:12]} 22. Rxc5 {[%clk
01:03:25]} Bxc5 {[%clk 00:52:36]} 23. Rc1 {[%clk 01:03:51]} Be7 {[%clk
00:49:51]} 24. Rxc6 {[%clk 01:04:15]} a5 {[%clk 00:50:13]} 25. Bb5 {[%clk
00:53:00]} Kf8 {[%clk 00:49:46]} 26. Rc7 {[%clk 00:52:23]} Rb8 {[%clk
00:47:03]} 27. a4 {[%clk 00:52:12]} Bd8 {[%clk 00:46:47]} 28. Rc3 {[%clk
00:47:53]} Bb6 {[%clk 00:46:23]} 29. Nd2 {[%clk 00:46:02]} h5 {[%clk 00:40:12]}
30. h4 {[%clk 00:41:30]} Rb7 {[%clk 00:36:35]} 31. Bg5 {[%clk 00:35:51]} Rc7
{[%clk 00:36:35]} 32. Rd3 {[%clk 00:34:25]} Rc8 {[%clk 00:35:38]} 33. Nb3
{[%clk 00:31:56]} Rg8 {[%clk 00:34:37]} 34. Nd4 {[%clk 00:30:46]} {[%emt
00:01:29]} Bd8 {[%clk 00:32:53]} {[%emt 00:02:15]} 35. Bh6+ {[%clk 00:30:23]}
{[%emt 00:00:52]} Ke7 {[%clk 00:33:17]} {[%emt 00:00:05]} 36. Nc6+ {[%clk
00:30:42]} {[%emt 00:00:12]} 1-0

[Event "Tournoi norme de MI"]
[Site "PARIS"]
[Date "????.??.??"]
[Round "3.3"]
[White "Vlachos, Anatole"]
[Black "Laurent, Julien G."]
[Result "1-0"]
[TimeControl "90mn+30s/c"]
[WhiteElo "2430"]
[BlackElo "2199"]

1. c4 {[%clk 01:30:58]} {[%emt 00:00:01]} e6 {[%clk 01:30:38]} {[%emt
00:00:21]} 2. Nf3 {[%clk 01:31:05]} {[%emt 00:00:24]} d5 {[%clk 01:31:05]}
{[%emt 00:00:03]} 3. g3 {[%clk 01:31:23]} {[%emt 00:00:12]} Nf6 {[%clk
01:31:22]} {[%emt 00:00:13]} 4. Bg2 {[%clk 01:31:50]} {[%emt 00:00:03]} Be7
{[%clk 01:30:58]} {[%emt 00:00:54]} 5. O-O {[%clk 01:32:14]} {[%emt 00:00:06]}
O-O {[%clk 01:31:25]} {[%emt 00:00:03]} 6. b3 {[%clk 01:32:39]} {[%emt
00:00:06]} a5 {[%clk 01:30:16]} {[%emt 00:01:38]} 7. Nc3 {[%clk 01:32:53]}
{[%emt 00:00:16]} Nbd7 {[%clk 01:24:23]} {[%emt 00:06:22]} 8. Bb2 {[%clk
01:30:26]} {[%emt 00:02:58]} Nc5 {[%clk 01:23:59]} {[%emt 02:13:55]} 9. Rb1
{[%clk 01:27:12]} c6 {[%clk 01:18:56]} 10. Qc2 {[%clk 01:25:09]} d4 {[%clk
01:12:04]} 11. Nxd4 {[%clk 01:25:11]} e5 {[%clk 01:02:40]} 12. Nf5 {[%clk
01:24:57]} Bxf5 {[%clk 01:02:46]} 13. Qxf5 {[%clk 01:25:24]} Qxd2 {[%clk
01:02:58]} 14. Qxe5 {[%clk 01:24:43]} Rfe8 {[%clk 01:03:08]} 15. Rfd1 {[%clk
01:20:21]} Qc2 {[%clk 01:02:48]} 16. Ba1 {[%clk 01:11:24]} Bf8 {[%clk
01:01:39]} 17. Qc7 {[%clk 01:07:09]} Rec8 {[%clk 00:54:33]} 18. Qf4 {[%clk
01:06:53]} Rd8 {[%clk 00:54:52]} 19. Rbc1 {[%clk 01:02:58]} Rxd1+ {[%clk
00:55:06]} 20. Rxd1 {[%clk 01:02:51]} a4 {[%clk 00:54:53]} 21. Rc1 {[%clk
00:57:31]} Qg6 {[%clk 00:55:14]} 22. Nxa4 {[%clk 00:55:15]} Nxa4 {[%clk
00:55:34]} 23. bxa4 {[%clk 00:55:43]} Rxa4 {[%clk 00:55:46]} 24. Qb8 {[%clk
00:53:26]} Rb4 {[%clk 00:55:41]} 25. Bf1 {[%clk 00:40:54]} Rb1 {[%clk
00:46:56]} 26. Rxb1 {[%clk 00:40:52]} Qxb1 {[%clk 00:47:23]} 27. Bxf6 {[%clk
00:41:08]} gxf6 {[%clk 00:47:43]} 28. e3 {[%clk 00:41:30]} Kg7 {[%clk
00:46:16]} 29. Qc8 {[%clk 00:41:06]} f5 {[%clk 00:42:09]} 30. Qc7 {[%clk
00:39:40]} Kg6 {[%clk 00:41:48]} 31. h4 {[%clk 00:39:38]} h6 {[%clk 00:40:30]}
32. Qd8 {[%clk 00:39:20]} Bg7 {[%clk 00:39:53]} 33. Qd6+ {[%clk 00:38:58]} Bf6
{[%clk 00:39:44]} 34. h5+ {[%clk 00:36:55]} Kg7 {[%clk 00:39:51]} 35. Qd3
{[%clk 00:36:41]} 1-0

[Event "Tournoi norme de MI"]
[Site "PARIS"]
[Date "????.??.??"]
[Round "3.2"]
[White "Mouhamad, Joachim"]
[Black "Roshka, Yevgeniy"]
[Result "0-1"]
[TimeControl "90mn+30s/c"]
[WhiteElo "2301"]
[BlackElo "2501"]

1. e4 {[%clk 01:30:56]} {[%emt 00:00:03]} c5 {[%clk 01:30:56]} {[%emt
00:00:05]} 2. Nf3 {[%clk 01:31:11]} {[%emt 00:00:14]} d6 {[%clk 01:31:07]}
{[%emt 00:00:20]} 3. d4 {[%clk 01:31:30]} {[%emt 00:00:11]} cxd4 {[%clk
01:31:32]} {[%emt 00:00:05]} 4. Nxd4 {[%clk 01:31:53]} {[%emt 00:00:06]} Nf6
{[%clk 01:31:59]} {[%emt 00:00:04]} 5. Nc3 {[%clk 01:32:15]} {[%emt 00:00:08]}
Nc6 {[%clk 01:32:26]} {[%emt 00:00:03]} 6. Be3 {[%clk 01:31:09]} {[%emt
00:01:35]} e5 {[%clk 01:30:27]} {[%emt 00:02:30]} 7. Nb3 {[%clk 01:30:22]}
{[%emt 00:01:17]} Be6 {[%clk 01:30:38]} {[%emt 00:00:19]} 8. f3 {[%clk
01:29:06]} {[%emt 00:01:46]} Be7 {[%clk 01:28:56]} {[%emt 00:02:12]} 9. Nd5
{[%clk 01:26:13]} {[%emt 02:16:37]} O-O {[%clk 01:25:39]} 10. Qd2 {[%clk
01:26:07]} a5 {[%clk 01:17:42]} 11. Bb6 {[%clk 01:08:37]} Qd7 {[%clk 01:17:59]}
12. Nxa5 {[%clk 01:08:29]} Bxd5 {[%clk 01:11:38]} 13. exd5 {[%clk 01:08:33]}
Nxa5 {[%clk 01:12:04]} 14. Bxa5 {[%clk 01:08:50]} Qa4 {[%clk 01:12:26]} 15. Bc3
{[%clk 00:56:07]} Rfc8 {[%clk 01:07:29]} 16. b3 {[%clk 00:32:37]} Qh4+ {[%clk
01:05:38]} 17. g3 {[%clk 00:32:29]} Qh5 {[%clk 01:05:31]} 18. Be2 {[%clk
00:29:20]} Rc5 {[%clk 00:55:45]} 19. Bb2 {[%clk 00:24:09]} Rxd5 {[%clk
00:54:56]} 20. Qe3 {[%clk 00:20:41]} Bd8 {[%clk 00:47:24]} 21. O-O {[%clk
00:15:15]} Nd7 {[%clk 00:47:32]} 22. Kg2 {[%clk 00:14:56]} Bb6 {[%clk
00:47:37]} 23. Qc1 {[%clk 00:14:36]} Rda5 {[%clk 00:46:57]} 24. a4 {[%clk
00:14:10]} Nf6 {[%clk 00:46:46]} 25. c4 {[%clk 00:13:15]} d5 {[%clk 00:46:25]}
26. b4 {[%clk 00:10:12]} {[%emt 00:02:18]} Rxa4 {[%clk 00:46:15]} {[%emt
00:00:40]} 27. Rxa4 {[%clk 00:10:40]} {[%emt 00:00:02]} Rxa4 {[%clk 00:46:38]}
{[%emt 00:00:07]} 28. g4 {[%clk 00:09:30]} {[%emt 00:01:40]} Qg6 {[%clk
00:46:30]} {[%emt 00:00:37]} 29. cxd5 {[%clk 00:09:32]} {[%emt 00:00:28]} Ra8
{[%clk 00:46:39]} {[%emt 00:00:21]} 30. Rd1 {[%clk 00:08:42]} {[%emt 00:01:20]}
h5 {[%clk 00:43:11]} {[%emt 00:03:58]} 31. h3 {[%clk 00:07:33]} {[%emt
00:01:39]} e4 {[%clk 00:37:56]} {[%emt 00:05:46]} 32. Qc3 {[%clk 00:07:58]}
{[%emt 00:00:04]} Re8 {[%clk 00:35:45]} {[%emt 00:02:41]} 33. Bc1 {[%clk
00:05:32]} {[%emt 00:02:57]} exf3+ {[%clk 00:35:45]} {[%emt 00:00:30]} 34. Qxf3
{[%clk 00:05:31]} {[%emt 00:00:31]} hxg4 {[%clk 00:36:10]} {[%emt 00:00:06]} 35.
hxg4 {[%clk 00:05:42]} {[%emt 00:00:19]} Nxg4 {[%clk 00:36:27]} {[%emt
00:00:13]} 36. Bd3 {[%clk 00:03:28]} {[%emt 00:02:44]} Ne3+ {[%clk 00:36:49]}
{[%emt 00:00:08]} 37. Kh2 {[%clk 00:03:21]} {[%emt 00:00:36]} Qh6+ {[%clk
00:36:51]} {[%emt 00:00:28]} 38. Kg3 {[%clk 00:03:35]} {[%emt 00:00:16]} Bc7+
{[%clk 00:37:12]} {[%emt 00:00:09]} 0-1



[ePGN "0.1;DGT LiveChess/2.2.5"]